bitfinex/quotes_ETHUSD_20250222
["timestamp","ask_amount","ask_price","bid_price","bid_amount"]
[1740244636807,4.39523,2789.0,2788.3,3.58641]
[1740244637012,4.39523,2789.0,2788.3,4.303696]
[1740244637243,3.58564,2788.9,2788.3,4.303696]
[1740244637409,4.39523,2789.0,2788.4,3.5862]
[1740244637914,0.8097,2789.0,2788.7,3.58589]
[1740244638334,4.39479,2789.4,2788.8,3.58568]
[1740244638501,4.39479,2789.4,2788.8,7.17137]
[1740244638697,0.8097,2789.4,2788.8,0.794067]
[1740244638891,0.8097,2789.4,2789.0,3.58544]
[1740244639096,0.8097,2789.4,2789.2,3.58524]
[1740244639297,4.39478,2789.4,2788.8,4.29038738]
[1740244639491,3.58516,2789.3,2788.8,4.29038738]
[1740244639698,3.58534,2789.2,2788.8,0.70469738]
[1740244640230,3.58516,2789.3,2788.8,0.70469738]
[1740244640433,0.8097,2789.4,2789.0,3.58544]
[1740244640628,0.8097,2789.4,2788.8,7.87603738]
[1740244640834,0.8097,2789.4,2788.9,3.58555]
[1740244641840,4.39473,2789.4,2788.9,3.58555]
[1740244642332,0.8097,2789.4,2788.8,4.29035738]
[1740244642498,3.58532,2789.2,2788.8,0.70469738]
[1740244642699,3.58538,2789.1,2788.8,0.70469738]
[1740244642932,3.58555,2789.0,2788.8,0.70469738]
[1740244643357,3.58538,2789.1,2788.8,0.70469738]
[1740244643535,3.43538,2789.1,2788.8,0.70469738]
[1740244644161,7.02088,2789.1,2788.6,3.586]
[1740244644297,3.43538,2789.1,2788.6,3.586]
[1740244644504,3.58567,2788.9,2788.4,4.40982]
[1740244644789,3.58579,2788.8,2788.5,0.826414]
[1740244645034,3.58602,2788.6,2788.1,0.8236]
[1740244645339,3.58583,2788.8,2788.1,1.52837619]
[1740244645637,3.0,2789.1,2788.6,3.58596]
[1740244645940,0.8071,2789.2,2788.8,3.58575]
[1740244646327,3.8071,2789.2,2788.8,3.58575]
[1740244646537,7.39236,2789.2,2788.7,3.58589]
[1740244646743,7.39236,2789.2,2788.6,7.17193]
[1740244647050,3.8071,2789.2,2788.9,3.58557]
[1740244647431,3.8071,2789.2,2788.8,3.58575]
[1740244647627,3.8071,2789.2,2788.9,3.58562]
[1740244647810,3.8071,2789.2,2788.8,3.58575]
[1740244648750,3.8071,2789.2,2788.9,3.68001985]
[1740244649754,3.8071,2789.2,2788.9,0.09440985]
[1740244649952,0.8071,2789.5,2789.3,3.58508]
[1740244650143,0.8071,2789.7,2789.3,3.58508]
[1740244650452,0.8071,2789.7,2789.4,0.09393973]
[1740244651015,9.64255,2790.0,2789.3,3.5851]
[1740244651215,9.64254,2790.0,2789.4,3.67881382]
[1740244651472,6.0583,2790.0,2789.6,0.73166088]
[1740244651668,0.8183,2790.0,2789.6,0.73166088]
[1740244651881,6.0583,2790.3,2790.0,3.58422]
[1740244652162,4.40224,2790.3,2789.8,3.58441]
[1740244652311,3.0,2790.2,2790.1,0.09293215]
[1740244652517,3.8183,2790.3,2789.8,3.5844]
[1740244652711,7.40215,2790.3,2789.9,0.09312008]
[1740244652913,0.8183,2790.3,2789.9,4.03581008]
[1740244653775,0.8183,2790.3,2790.0,3.58416]
[1740244653966,0.8183,2790.3,2789.9,4.03581008]
[1740244654276,0.8183,2790.3,2790.0,0.09280238]
[1740244656979,4.40216,2790.3,2790.0,0.09280238]
[1740244657885,3.0,2790.4,2790.0,3.67694238]
[1740244658053,4.40192,2790.5,2790.0,0.85476862]
[1740244658239,7.98559,2790.5,2790.2,0.72684827]
[1740244658434,4.40192,2790.5,2790.3,0.09167456]
[1740244658639,4.40192,2790.5,2790.2,0.72684827]
[1740244658852,4.40192,2790.5,2790.3,0.09167456]
[1740244659135,0.8183,2790.5,2790.2,0.72684827]
[1740244659341,0.8183,2790.8,2790.2,0.72684827]
[1740244659539,8.82298,2791.0,2790.5,7.167]
[1740244659809,5.24,2791.0,2790.5,3.58348]
[1740244659974,5.24,2791.0,2790.6,0.09134382]
[1740244660275,3.0,2791.0,2790.6,0.09134382]
[1740244660637,3.58294,2791.0,2790.6,0.09134382]
[1740244660837,4.40367918,2791.1,2790.6,3.67478382]
[1740244661252,0.00256918,2791.1,2790.7,4.40183]
[1740244661538,0.00256918,2791.1,2790.8,0.09115598]
[1740244661748,0.00256918,2791.1,2790.7,0.8185]
[1740244662075,0.00256918,2791.1,2790.8,0.09087646]
[1740244662285,0.00256918,2791.1,2790.7,4.91460766]
[1740244662478,0.00256918,2791.1,2790.9,0.09078255]
[1740244662772,0.00256918,2791.1,2790.7,4.91460766]
[1740244663082,0.00256918,2791.1,2791.0,3.58294]
[1740244663274,0.00256918,2791.1,2791.0,0.358294]
[1740244663575,0.00256918,2791.1,2791.0,0.4489547]
[1740244664283,4.39157918,2791.1,2791.0,0.0906607]
[1740244664585,3.58333,2790.7,2790.4,5.39]
[1740244664786,7.39164918,2791.1,2791.0,0.0906607]
[1740244664974,7.12865934,2791.1,2790.4,8.97371]
[1740244665159,3.80876918,2791.1,2790.5,3.58351]
[1740244665362,3.58545918,2791.1,2790.6,0.7674]
[1740244665681,3.58545918,2791.1,2790.7,0.09094243]
[1740244665889,0.00256918,2791.1,2790.7,0.09094243]
[1740244666096,0.00256918,2791.1,2790.7,4.11838767]
[1740244666284,0.00256918,2791.1,2790.8,3.58318]
[1740244666478,0.00256918,2791.1,2790.8,3.67402851]
[1740244668261,0.00256918,2791.1,2790.8,0.09084851]
[1740244668463,3.58297,2791.0,2790.6,0.7674]
[1740244668687,3.58297,2791.0,2790.7,0.09008466]
[1740244668890,7.166,2791.0,2790.7,0.09008466]
[1740244669595,3.58297,2791.0,2790.7,0.09008466]
[1740244669793,3.58309,2790.9,2790.7,0.09008466]
[1740244670100,3.5832,2790.8,2790.7,0.09008466]
[1740244670287,3.5832,2790.8,2790.5,0.73356565]
[1740244670592,3.5832,2790.8,2790.7,0.09008466]
[1740244670801,3.5832,2790.8,2790.6,0.09017859]
[1740244670987,3.58303,2791.0,2790.7,0.09008466]
[1740244671387,0.00256918,2791.1,2790.5,4.31705565]
[1740244671594,0.00256918,2791.1,2790.8,0.09004893]
[1740244671765,0.00256918,2791.1,2790.6,4.01515557]
[1740244671970,3.58539918,2791.1,2790.9,0.09003988]
[1740244672171,3.58539918,2791.1,2790.6,3.58345]
[1740244672407,0.00256918,2791.1,2791.0,0.08994597]
[1740244672607,3.58541918,2791.1,2790.6,3.58345]
[1740244672814,3.58541918,2791.1,2791.0,0.08994597]
[1740244672968,3.58315,2790.9,2790.5,0.73356565]
[1740244673289,3.58322,2790.8,2790.5,0.73356565]
[1740244673967,7.16632,2790.9,2790.5,0.73356565]
[1740244674707,3.58315,2790.9,2790.5,0.73356565]
[1740244675506,3.58295,2791.0,2790.5,4.31708565]
[1740244675725,3.58295,2791.0,2790.5,5.10716522]
[1740244676605,3.5832,2790.8,2790.5,1.52364522]
[1740244676807,9.0285,2791.0,2790.2,0.8318]
[1740244677106,9.0285,2791.0,2789.9,1.0998]
[1740244677107,3.58384,2790.3,2789.9,1.0998]
[1740244677286,3.58373,2790.4,2789.9,1.38138]
[1740244677617,3.58398,2790.2,2789.9,1.38138]
[1740244677963,7.16755,2790.4,2789.9,1.38138]
[1740244678168,3.58375,2790.4,2789.9,1.38138]
[1740244678409,3.58391,2790.3,2789.9,1.38138]
[1740244678814,3.58391,2790.3,2790.0,0.08777974]
[1740244679517,3.5841,2790.1,2790.0,0.08777974]
[1740244679712,3.5841,2790.1,2789.7,7.324]
[1740244679881,3.5841,2790.1,2790.0,0.08777974]
[1740244680213,3.58391,2790.3,2789.7,10.90859]
[1740244680378,0.7885,2790.5,2790.0,0.08777974]
[1740244680379,3.5841,2790.1,2790.0,0.08777974]
[1740244680575,3.58398,2790.2,2789.7,8.43108068]
[1740244680778,3.58384,2790.3,2790.0,0.08777974]
[1740244680978,3.58384,2790.3,2789.8,3.58447]
[1740244681500,3.58384,2790.3,2789.9,0.08787371]
[1740244681702,0.7885,2790.5,2789.9,1.65665715]
[1740244681903,5.24,2790.7,2790.0,4.40289]
[1740244682216,5.24,2790.7,2790.1,3.5841]
[1740244682521,8.82339,2790.7,2790.2,0.08808711]
[1740244682893,3.58384,2790.3,2789.9,1.56878344]
[1740244683112,4.38942,2790.4,2789.9,1.56878344]
[1740244683317,7.16708,2790.6,2790.1,3.58409]
[1740244683494,3.58387,2790.3,2789.8,4.73548386]
[1740244683835,3.58387,2790.3,2789.7,7.592]
[1740244683836,3.58435,2789.9,2789.7,7.324]
[1740244683981,0.8057,2790.2,2789.7,7.324]
[1740244683982,3.58448,2789.8,2789.7,7.324]
[1740244684317,3.58448,2789.8,2789.3,1.52721]
[1740244684489,3.58448,2789.8,2789.4,0.511241]
[1740244684903,3.58436,2789.9,2789.4,4.096171]
[1740244685222,3.58436,2789.9,2789.4,0.511241]
[1740244685395,3.58436,2789.9,2789.5,3.58486]
[1740244685725,3.58413,2790.1,2789.6,3.5847]
[1740244685878,3.58413,2790.1,2789.5,3.58486]
[1740244685879,3.58422,2790.0,2789.5,3.58486]
[1740244686415,3.58413,2790.1,2789.6,3.58472]
[1740244686617,4.39607,2790.5,2790.0,3.58414]
[1740244686779,7.16776,2790.3,2789.8,0.8248]
[1740244687114,0.8124,2790.5,2789.8,0.8248]
[1740244687115,3.8124,2790.5,2789.8,0.8248]
[1740244687324,3.8124,2790.5,2789.9,3.58435]
[1740244687525,3.8124,2790.5,2790.0,3.58413]
[1740244688403,3.58383,2790.4,2789.8,4.40919]
[1740244688574,3.58371,2790.4,2789.8,4.40919]
[1740244688780,3.58371,2790.4,2789.8,5.208576]
[1740244688981,7.39609,2790.5,2789.9,3.58434]
[1740244689181,3.58373,2790.4,2789.9,3.58434]
[1740244689617,3.58391,2790.3,2789.8,1.624186]
[1740244690224,3.58403,2790.2,2789.8,1.624186]
[1740244690523,3.58431,2790.0,2789.6,0.8095]
[1740244691092,3.58402,2790.2,2789.7,3.58457]
[1740244692745,3.0,2790.3,2789.8,3.58448]
[1740244692920,3.0,2790.3,2789.9,3.58434]
[1740244693730,3.0,2790.3,2790.0,0.08876337]
[1740244693939,0.8124,2790.5,2790.0,0.08876337]
[1740244694087,3.58397,2790.2,2790.1,0.72893477]
[1740244694286,3.58397,2790.2,2790.1,0.81760418]
[1740244696542,8.82346,2790.6,2790.2,3.5839]
[1740244697046,8.82346,2790.6,2790.3,0.0884815]
[1740244697336,8.82346,2790.6,2790.2,3.5839]
[1740244697570,8.82346,2790.6,2790.4,0.08838756]
[1740244697743,8.82346,2790.6,2790.1,5.12252477]
[1740244697943,11.82346,2790.6,2790.5,0.08829362]
[1740244698254,11.82346,2790.6,2790.1,5.99319025]
[1740244698458,6.58346,2790.6,2790.5,0.08829362]
[1740244698680,3.58369,2790.5,2790.1,1.53843477]
[1740244698966,3.0,2790.6,2790.2,3.58397]
[1740244699123,6.58352,2790.6,2790.1,5.12252477]
[1740244699519,3.58358,2790.5,2790.1,5.12252477]
[1740244699719,3.0,2790.6,2790.1,5.99320525]
[1740244699966,6.58346,2790.6,2790.1,5.99320525]
[1740244700369,3.0,2790.6,2790.1,5.99314525]
[1740244700728,6.58348,2790.6,2790.1,5.99314525]
[1740244701175,6.58348,2790.6,2790.2,3.58394]
[1740244701533,6.58348,2790.6,2790.2,4.54164852]
[1740244701779,3.0,2790.6,2790.2,4.54164852]
[1740244702875,0.767,2791.0,2790.4,3.5836]
[1740244703086,0.767,2791.0,2790.4,3.58364]
[1740244703385,3.0,2790.9,2790.5,3.58357]
[1740244704036,6.58315,2790.9,2790.3,3.5838]
[1740244704237,3.58331,2790.8,2790.3,4.19179433]
[1740244704542,6.58315,2790.9,2790.5,3.58355]
[1740244704764,0.767,2791.0,2790.5,3.58351]
[1740244704962,4.34996,2791.0,2790.5,3.58351]
[1740244705165,3.58296,2791.0,2790.6,0.8095]
[1740244705337,3.00256918,2791.1,2790.7,0.439301]
[1740244705673,3.58309,2790.9,2790.7,0.439301]
[1740244705964,3.58309,2790.9,2790.4,4.34521]
[1740244706136,0.00256918,2791.1,2790.3,0.60799433]
[1740244706337,3.58315,2790.9,2790.4,3.58369]
[1740244707276,7.16607,2791.0,2790.5,3.58355]
[1740244707571,3.58309,2790.9,2790.4,3.58365]
[1740244707772,3.58309,2790.9,2790.5,0.41916443]
[1740244708378,3.58309,2790.9,2790.5,4.00273443]
[1740244708680,3.58309,2790.9,2790.5,0.41916443]
[1740244708867,3.58327,2790.8,2790.6,0.08782291]
[1740244709571,3.58333,2790.7,2790.6,0.08782291]
[1740244709753,4.40813,2790.7,2790.6,0.08782291]
[1740244709948,3.58345,2790.6,2789.9,4.34573]
[1740244710176,3.58345,2790.6,2790.0,1.000373]
[1740244710467,3.5839,2790.3,2789.9,0.7615]
[1740244710833,3.58373,2790.4,2789.9,4.34576]
[1740244711268,3.58373,2790.4,2789.9,7.93004]
[1740244711473,3.58355,2790.6,2790.0,3.58413]
[1740244711672,3.8248,2790.7,2789.9,0.7615]
[1740244711843,3.8248,2790.7,2790.3,3.58377]
[1740244712341,7.4082,2790.7,2790.2,3.58396]
[1740244712557,7.4082,2790.7,2790.2,4.30076]
[1740244712751,7.4082,2790.7,2790.2,0.7168]
[1740244712972,7.4082,2790.7,2789.9,4.34577]
[1740244712973,3.58345,2790.6,2789.9,4.34577]
[1740244713173,3.58367,2790.5,2789.9,7.93006]
[1740244713542,3.58378,2790.4,2789.9,4.34577]
[1740244713773,3.58378,2790.4,2789.9,0.7615]
[1740244713969,3.58398,2790.2,2789.9,0.7615]
[1740244714277,3.58392,2790.3,2789.9,0.7615]
[1740244714452,3.58398,2790.2,2789.9,0.7615]
[1740244714654,3.58398,2790.2,2789.7,3.58455]
[1740244714969,7.16805,2790.2,2789.8,1.255928]
[1740244715141,4.36628,2790.2,2789.8,1.255928]
[1740244715342,3.58432,2790.0,2789.7,0.7773]
[1740244715541,3.58432,2790.0,2789.5,4.36216]
[1740244715744,3.58442,2789.9,2789.5,0.7773]
[1740244715956,3.58443,2789.9,2789.5,0.7773]
[1740244716767,3.5841,2790.1,2789.6,3.58472]
[1740244716939,3.5841,2790.1,2789.7,0.436202]
[1740244717141,3.58423,2790.0,2789.5,4.36216]
[1740244717980,3.58423,2790.0,2789.5,0.7773]
[1740244718175,3.58426,2790.0,2789.5,4.36216]
[1740244718396,3.5843,2790.0,2789.5,4.36217]
[1740244718597,3.58445,2789.9,2789.5,0.86727636]
[1740244719097,4.3663,2790.2,2789.7,3.58459]
[1740244719385,0.7823,2790.2,2789.8,3.58442]
[1740244719906,4.36629,2790.2,2789.7,3.58457]
[1740244720051,0.7823,2790.2,2789.8,3.58438]
[1740244720250,0.7823,2790.2,2789.9,3.58429]
[1740244720589,0.7823,2790.2,2789.5,0.86727636]
[1740244720880,0.7823,2790.2,2789.7,3.58448]
[1740244721085,4.36633,2790.2,2789.7,3.58448]
[1740244722755,7.95043,2790.2,2789.7,3.58448]
[1740244723391,4.36633,2790.2,2789.7,3.58448]
[1740244723786,4.36633,2790.2,2789.8,0.08597706]
[1740244723988,4.36633,2790.2,2789.7,3.58448]
[1740244724175,4.36633,2790.2,2789.9,0.08588309]
[1740244724375,4.36633,2790.2,2789.8,0.08597706]
[1740244724590,4.36633,2790.2,2789.7,3.58448]
[1740244724883,4.36633,2790.2,2789.9,0.08588309]
[1740244725056,4.36633,2790.2,2789.8,0.08597706]
[1740244725261,3.5841,2790.1,2790.0,0.08578912]
[1740244725494,3.5841,2790.1,2789.9,0.08588309]
[1740244725699,4.36633,2790.2,2790.0,0.08578912]
[1740244725897,4.36633,2790.2,2789.7,3.58461]
[1740244726095,4.36633,2790.2,2789.7,4.34606926]
[1740244726286,4.36633,2790.2,2789.8,0.08597706]
[1740244726600,4.36633,2790.2,2789.7,4.34606926]
[1740244726797,4.36633,2790.2,2789.9,0.08588309]
[1740244727294,0.7823,2790.2,2789.8,3.58448]
[1740244727469,0.7823,2790.2,2790.0,0.08578912]
[1740244727671,0.7823,2790.2,2789.9,0.08588309]
[1740244727857,7.36627,2790.2,2790.0,0.08578912]
[1740244728057,3.5841,2790.1,2790.0,0.08578912]
[1740244728365,4.36627,2790.2,2790.0,0.08578912]
[1740244728566,4.36627,2790.2,2789.8,3.58444]
[1740244728567,0.7823,2790.2,2789.8,3.58444]
[1740244728803,0.7823,2790.2,2790.1,0.08569515]
[1740244728977,0.7823,2790.2,2789.8,3.58444]
[1740244729166,4.36628,2790.2,2790.1,0.08570212]
[1740244729499,3.58413,2790.1,2789.7,3.5846]
[1740244730918,0.7823,2790.2,2789.7,3.5846]
[1740244731196,4.3663,2790.2,2789.7,3.5846]
[1740244731378,3.58413,2790.1,2789.7,3.5846]
[1740244731804,3.58413,2790.1,2789.6,3.58472]
[1740244732008,3.58413,2790.1,2789.7,3.5846]
[1740244732172,3.58413,2790.1,2789.6,0.49005319]
[1740244732369,3.58413,2790.1,2789.6,4.07478319]
[1740244732704,3.5841,2790.1,2789.6,4.07478319]
[1740244733273,3.5841,2790.1,2789.6,4.07472319]
[1740244733587,3.5841,2790.1,2789.7,0.40747232]
[1740244733901,3.5841,2790.1,2789.4,3.58492]
[1740244734199,3.58431,2790.0,2789.4,3.58492]
[1740244734401,3.0,2790.3,2789.3,1.48481532]
[1740244734402,3.58458,2789.8,2789.3,1.48481532]
[1740244734702,0.8147,2789.7,2789.3,5.06991532]
[1740244734961,0.8147,2789.7,2789.3,2.35032185]
[1740244735206,4.39932,2789.7,2789.3,1.57302185]
[1740244735612,3.58511,2789.4,2788.8,4.34328]
[1740244735784,0.8147,2789.4,2788.8,0.7576]
[1740244735979,3.5852,2789.3,2788.8,4.34334]
[1740244736179,0.8147,2789.4,2788.9,3.69785146]
[1740244736413,0.8147,2789.4,2789.0,0.80411915]
[1740244737023,3.58539,2789.1,2788.9,0.11222146]
[1740244737180,4.40021,2789.0,2788.9,0.11222146]
[1740244737506,0.8147,2789.0,2788.9,0.11222146]
[1740244737711,0.8147,2789.0,2788.6,3.58596]
[1740244738116,6.58521,2789.3,2788.8,0.7576]
[1740244738117,3.8147,2789.3,2788.8,0.7576]
[1740244738278,7.39983,2789.3,2788.8,4.78613584]
[1740244738613,7.39983,2789.3,2788.9,0.08439257]
[1740244738992,3.8147,2789.3,2788.9,0.08439257]
[1740244739199,5.24,2789.4,2789.1,3.58531]
[1740244739514,8.82507,2789.4,2789.0,0.08429853]
[1740244739813,8.82507,2789.4,2788.8,7.61416584]
[1740244739814,8.82507,2789.4,2789.1,0.0842045]
[1740244739978,12.41014,2789.4,2788.9,3.58563]
[1740244740178,12.41015,2789.4,2789.2,0.08411048]
[1740244740375,8.82507,2789.4,2788.8,0.44278584]
[1740244740632,3.58584,2788.8,2788.3,0.7752]
[1740244740916,3.58584,2788.8,2788.3,4.36152]
[1740244741615,3.58584,2788.8,2788.3,0.7752]
[1740244741819,3.7648,2788.8,2788.2,0.71809637]
[1740244741985,0.7648,2788.4,2788.2,0.71809637]
[1740244742318,4.35118,2788.4,2788.2,0.71809637]
[1740244742502,3.58645,2788.3,2787.9,0.8233]
[1740244742679,3.58678,2788.1,2787.8,0.11226261]
[1740244743104,3.58678,2788.1,2787.9,0.70844451]
[1740244743317,3.5868,2788.0,2787.9,0.70844451]
[1740244743489,4.3516,2788.0,2787.9,0.70844451]
[1740244744280,0.7648,2788.0,2787.9,0.70844451]
[1740244744612,3.0,2788.2,2787.9,0.70844451]
[1740244744806,3.0,2788.2,2787.9,4.29536451]
[1740244745010,6.0048,2788.5,2788.2,3.58646]
[1740244745209,6.0048,2788.5,2788.0,3.58667]
[1740244745801,6.0048,2788.5,2788.1,3.58664]
[1740244746120,6.0048,2788.5,2788.1,3.58657]
[1740244746326,6.0048,2788.5,2788.4,3.58628]
[1740244746533,0.7857,2788.8,2788.5,3.58613]
[1740244746690,1.05354848,2789.0,2788.6,3.58598]
[1740244747017,3.0,2788.9,2788.5,3.58615]
[1740244747220,7.63908848,2789.0,2788.5,3.58615]
[1740244747522,7.63908848,2789.0,2788.4,3.58621]
[1740244747825,7.63908848,2789.0,2788.4,3.5862]
[1740244748526,7.63908848,2789.0,2788.4,7.1724]
[1740244748827,3.58564,2788.9,2788.4,3.5862]
[1740244750230,4.05354848,2789.0,2788.4,3.58618]
[1740244750410,4.05354848,2789.0,2788.7,3.5858]
[1740244750411,3.7857,2789.0,2788.7,3.5858]
[1740244750615,3.7857,2789.0,2788.5,7.17211]
[1740244750928,3.7857,2789.0,2788.6,3.58599]
[1740244751128,5.24,2789.1,2788.3,0.816]
[1740244751287,3.58493,2789.5,2788.3,0.816]
[1740244751288,5.24,2789.5,2789.2,3.58516]
[1740244751492,0.8089,2789.6,2789.1,0.8121]
[1740244751696,6.0489,2789.8,2789.3,3.585]
[1740244751897,0.8089,2789.8,2789.4,3.58491]
[1740244752101,0.8089,2789.8,2789.3,3.585]
[1740244752321,7.16938,2789.7,2789.1,4.39744]
[1740244752624,3.58462,2789.7,2789.1,1.6104]
[1740244752802,3.58482,2789.6,2789.1,1.6104]
[1740244753123,3.58461,2789.7,2789.1,1.6104]
[1740244753324,0.55,2789.8,2788.8,0.8121]
[1740244753627,3.58521,2789.3,2788.6,0.8121]
[1740244753829,7.17044,2789.3,2788.9,0.08517892]
[1740244754129,3.58521,2789.3,2788.8,3.58574]
[1740244754422,3.58521,2789.3,2788.9,0.08517892]
[1740244755425,0.439411,2789.3,2788.6,0.8121]
[1740244755627,0.8089,2789.1,2789.0,0.08508488]
[1740244755801,3.58579,2788.8,2788.3,4.39849]
[1740244756008,3.58579,2788.8,2788.3,0.8121]
[1740244756206,3.58579,2788.8,2788.3,4.39845]
[1740244756404,3.58579,2788.8,2788.3,5.956353]
[1740244756610,3.58597,2788.7,2788.3,1.557903]
[1740244756995,3.58579,2788.8,2788.3,5.144243]
[1740244757239,3.58558,2789.0,2788.3,1.557903]
[1740244757525,3.58558,2789.0,2788.3,5.144193]
[1740244757730,3.58566,2788.9,2788.4,0.8730643]
[1740244758029,3.58566,2788.9,2788.4,4.4593143]
[1740244758428,4.13572,2788.9,2788.4,4.4593143]
[1740244759188,3.58578,2788.8,2788.4,0.8730643]
[1740244759395,3.58598,2788.7,2788.4,0.8730643]
[1740244759712,3.58598,2788.7,2788.2,3.58645]
[1740244759923,3.58578,2788.8,2788.1,7.326]
[1740244759924,3.58617,2788.5,2788.1,7.326]
[1740244760632,3.58635,2788.4,2788.0,1.24162845]
[1740244760932,3.58615,2788.5,2788.0,4.39889]
[1740244761893,0.55,2788.5,2788.0,0.8121]
[1740244762095,3.58637,2788.4,2788.0,0.8121]
[1740244762633,0.55,2788.5,2788.0,4.39887]
[1740244762935,4.13619,2788.5,2788.0,4.39887]
[1740244763133,4.13619,2788.5,2788.0,0.8121]
[1740244763134,3.58635,2788.4,2788.0,0.8121]
[1740244763296,3.58649,2788.3,2787.7,0.7871]
[1740244763500,4.13624,2788.5,2787.7,0.7871]
[1740244763730,7.173,2788.3,2787.7,4.37424]
[1740244763910,3.58648,2788.3,2787.7,5.26914731]
[1740244764313,3.58667,2788.1,2787.7,1.68200731]
[1740244764957,3.58649,2788.3,2787.8,3.58704]
[1740244766010,3.58649,2788.3,2787.8,3.58695]
[1740244766737,3.58649,2788.3,2787.8,7.17393]
[1740244766939,3.58649,2788.3,2787.8,4.54450804]
[1740244767538,3.0,2788.4,2788.0,3.58678]
[1740244767735,0.55,2788.3,2788.0,3.58678]
[1740244767927,0.55,2788.3,2787.8,4.54450804]
[1740244768124,0.55,2788.3,2787.8,8.13144804]
[1740244768426,4.13642,2788.3,2787.8,4.54449804]
[1740244768734,4.13642,2788.3,2787.9,0.08623096]
[1740244768940,3.58656,2788.2,2787.9,0.08623096]
[1740244769541,0.55,2788.3,2787.9,0.08623096]
[1740244770036,3.58667,2788.1,2787.9,0.08623096]
[1740244770250,3.58667,2788.1,2787.7,0.7871]
[1740244770535,3.58718,2787.7,2787.6,0.71964308]
[1740244771245,4.95508,2787.7,2787.6,0.71964308]
[1740244771601,4.95517,2787.7,2787.3,7.326]
[1740244771806,4.13731,2787.6,2787.3,7.326]
[1740244772207,4.13731,2787.6,2787.4,0.73440704]
[1740244772638,0.55,2787.6,2787.4,0.73440704]
[1740244772808,3.0,2788.0,2787.4,0.73440704]
[1740244772809,3.0,2788.0,2787.6,3.58731]
[1740244773941,6.58683,2788.0,2787.5,3.58739]
[1740244774848,3.0,2788.0,2787.4,2.67252874]
[1740244775059,3.0,2788.0,2787.9,3.58692]
[1740244775259,3.0,2788.0,2787.7,3.58713]
[1740244776133,3.55,2788.1,2787.7,3.58713]
[1740244776529,7.13669,2788.1,2787.4,1.50770704]
[1740244776845,7.13669,2788.1,2787.4,2.01723674]
[1740244777413,3.58686,2788.0,2787.5,3.58742]
[1740244777612,7.1367,2788.1,2787.5,3.58737]
[1740244777808,3.58686,2788.0,2787.5,3.58737]
[1740244778013,3.0,2787.7,2787.4,1.50770704]
[1740244778743,4.40492,2787.9,2787.4,1.50770704]
[1740244778910,4.577552,2787.8,2787.4,0.73440704]
[1740244779114,7.13706,2787.8,2787.4,0.73440704]
[1740244779515,3.58728,2787.7,2787.4,0.73440704]
[1740244780444,0.55,2787.8,2787.4,0.73440704]
[1740244780636,0.55,2787.8,2787.5,3.58737]
[1740244780944,4.40834,2788.2,2787.5,3.58736]
[1740244781247,3.0,2788.1,2787.7,3.58709]
[1740244782338,0.55,2788.0,2787.9,3.58692]
[1740244782541,0.55,2788.1,2787.7,3.58709]
[1740244783653,3.55,2788.1,2787.8,0.08767586]
[1740244783951,3.55,2788.1,2787.7,3.58709]
[1740244784149,3.55,2788.1,2787.9,0.08758175]
[1740244784314,3.55,2788.1,2787.8,0.08767586]
[1740244784518,3.55,2788.1,2788.0,0.08748764]
[1740244784735,3.55,2788.1,2787.9,0.08758175]
[1740244784950,7.13676,2788.1,2787.9,0.08758175]
[1740244785137,7.13676,2788.1,2787.6,3.5873]
[1740244785338,7.13676,2788.1,2788.0,0.08748764]
[1740244785553,7.13676,2788.1,2787.6,3.5873]
[1740244785755,7.13676,2788.1,2788.0,0.08748764]
[1740244786060,3.58686,2788.0,2787.5,3.58731]
[1740244786423,3.58686,2788.0,2787.5,7.17468]
[1740244786734,3.58686,2788.0,2787.5,3.58731]
[1740244786933,3.58686,2788.0,2787.5,7.17469]
[1740244787131,3.55,2788.1,2787.5,4.413859]
[1740244787334,3.55,2788.1,2787.6,3.5872]
[1740244787840,7.13678,2788.1,2787.6,3.5872]
[1740244788045,0.55,2787.9,2787.4,0.8228]
[1740244788242,0.55,2787.6,2787.2,0.72302921]
[1740244788479,3.5875,2787.5,2787.2,0.72302921]
[1740244788623,6.5877,2787.3,2787.2,0.72302921]
[1740244788948,7.1377,2787.3,2787.2,0.72302921]
[1740244789258,7.89313,2787.2,2787.1,0.26701949]
[1740244790560,7.89313,2787.2,2786.8,0.11231397]
[1740244790931,3.0,2787.0,2786.8,0.11231397]
[1740244791344,7.89313,2787.2,2786.8,0.11231397]
[1740244791564,7.89313,2787.2,2786.7,3.70075397]
[1740244791933,3.0,2787.0,2786.7,0.11231397]
[1740244793538,3.58816,2787.0,2786.7,0.11231397]
[1740244793739,3.55,2787.0,2786.7,0.11231397]
[1740244794970,7.13809,2787.0,2786.6,11.67823]
[1740244795776,3.0,2786.8,2786.6,7.328]
[1740244796288,3.58847,2786.7,2786.6,7.328]
[1740244797136,0.55,2786.8,2786.6,7.328]
[1740244797737,6.58847,2786.7,2786.6,7.328]
[1740244797942,7.93497,2786.7,2786.6,7.328]
[1740244798678,7.93497,2786.7,2786.6,7.41694506]
[1740244799446,7.93497,2786.7,2786.6,0.08894506]
[1740244799675,7.93497,2786.7,2786.3,0.73472643]
[1740244799855,0.55,2786.4,2786.3,0.73472643]
[1740244801375,0.55,2786.5,2786.3,0.73472643]
[1740244803481,3.58886,2786.4,2786.3,0.73472643]
[1740244803686,4.13886,2786.4,2786.3,0.73472643]
[1740244803981,7.13886,2786.4,2786.3,0.73472643]
[1740244804146,3.55,2786.4,2786.3,0.73472643]
[1740244804686,7.13886,2786.4,2786.3,0.73472643]
[1740244805054,3.55,2786.4,2786.3,0.82455336]
[1740244805304,3.55,2786.4,2786.3,0.73472643]